[Event "Tirnavia Reti Memorial-GM 2022"]
[Site "Trnava"]
[Date "2022.08.10"]
[Round "1.1"]
[White "Stevik, Patrik"]
[Black "Malinovsky, Karel"]
[Result "0-1"]
[ECO "E05"]
[WhiteElo "2126"]
[BlackElo "2463"]
[Annotator "RC"]
[PlyCount "86"]
[EventDate "2022.08.10"]
[EventType "tourn"]
[EventCountry "SVK"]
[SourceTitle "playchess.com"]
[Source "ChessBase"]
[SourceQuality "1"]
[TimeControl "40/5400+30:1800+30"]

1. d4 {[%emt 0:00:08]} d5 {[%emt 0:00:09]} 2. c4 {[%emt 0:00:24]} e6 {[%emt 0:00:11]} 3. Nf3 {[%emt 0:00:50]} Nf6 {[%emt 0:00:24]} 4. g3 {[%emt 0:00:34]} Be7 {[%emt 0:00:18]} 5. Bg2 {[%emt 0:00:16]} O-O {[%emt 0:00:10]} 6. O-O {[%emt 0:00:32]} dxc4 {[%emt 0:00:13]} 7. Qc2 {[%emt 0:03:52]} b5 {[%emt 0:02:52]} 8. a4 {[%emt 0:02:08]} Bb7 {[%emt 0:00:51]} 9. axb5 {[%emt 0:01:19]} a6 {[%emt 0:01:05]} 10. Nc3 {[%emt 0:06:10]} axb5 {[%emt 0:00:48]} 11. Rxa8 {[%emt 0:00:29]} Bxa8 {[%emt 0:00:07]} 12. Nxb5 {[%emt 0:00:37]} Bd5 {[%emt 0:00:58]} 13. Nc3 {[%emt 0:08:47]} Na6 {[%emt 0:08:43]} 14. e4 {[%emt 0:08:02]} Bb7 {[%emt 0:02:59]} 15. Bg5 {[%emt 0:08:34]} c5 {[%emt 0:14:04]} 16. Rd1 {[%emt 0:17:16]} cxd4 {[%emt 0:08:10]} 17. Rxd4 {[%emt 0:02:07]} Qa8 {[%emt 0:01:22]} 18. Bxf6 {[%emt 0:08:00]} gxf6 {[%emt 0:06:17]} 19. Rxc4 {[%emt 0:01:55]} Nb4 {[%emt 0:07:03]} 20. Qa4 {[%emt 0:05:05]} Qxa4 {[%emt 0:10:20]} 21. Nxa4 {[%emt 0:00:01]} Rb8 {[%emt 0:00:31]} 22. Nd4 {[%emt 0:04:27]} Bf8 {[%emt 0:15:12]} 23. h4 {[%emt 0:03:02]} Nd3 {[%emt 0:05:09]} 24. Rc3 {[%emt 0:02:46]} Ne1 {[%emt 0:03:48]} 25. Bf1 {[%emt 0:07:33]} Rd8 {[%emt 0:02:10]} 26. Nf3 {[%emt 0:04:28]} Rd1 {[%emt 0:01:26]} 27. Nxe1 {[%emt 0:01:19]} Rxe1 {[%emt 0:00:06]} 28. Re3 {[%emt 0:00:12]} Ra1 {[%emt 0:00:50]} 29. Nc3 {[%emt 0:02:12]} Ba6 {[%emt 0:00:51]} 30. Re2 {[%emt 0:00:58]} Bb4 {[%emt 0:03:10]} 31. Kg2 {[%emt 0:00:17]} Bxc3 {[%emt 0:00:18]} 32. bxc3 {[%emt 0:00:01]} Rc1 {[%emt 0:00:33]} 33. Re1 {[%emt 0:01:56]} Rxe1 {[%emt 0:00:24]} 34. Bxa6 {[%emt 0:00:02]} Rxe4 {[%emt 0:00:15]} 35. Bd3 {[%emt 0:01:06]} Re1 {[%emt 0:00:44]} 36. Kf3 {[%emt 0:00:24]} h6 {[%emt 0:01:13]} 37. c4 {[%emt 0:00:38]} Kf8 {[%emt 0:00:43]} 38. Kf4 {[%emt 0:00:32]} Ke7 {[%emt 0:00:33]} 39. Be4 {[%emt 0:00:28]} f5 {[%emt 0:01:35]} 40. Bf3 {[%emt 0:00:32]} Kf6 {[%emt 0:00:41]} 41. Bb7 {[%emt 0:02:32]} Rc1 {[%emt 0:00:42]} 42. Ba6 {[%emt 0:00:19]} Rc3 {[%emt 0:00:13]} 43. h5 {[%emt 0:00:55]} e5# {[%emt 0:00:06]} 0-1

[Event "Tirnavia Reti Memorial-GM 2022"]
[Site "Trnava"]
[Date "2022.08.10"]
[Round "1.2"]
[White "Sahidi, Samir"]
[Black "Finek, Vaclav"]
[Result "1-0"]
[ECO "D45"]
[WhiteElo "2462"]
[BlackElo "2393"]
[Annotator "RC"]
[PlyCount "143"]
[EventDate "2022.08.10"]
[EventType "tourn"]
[EventCountry "SVK"]
[SourceTitle "playchess.com"]
[Source "ChessBase"]
[SourceQuality "1"]
[TimeControl "40/5400+30:1800+30"]

1. d4 {[%emt 0:00:08]} d5 {[%emt 0:00:09]} 2. c4 {[%emt 0:00:58]} c6 {[%emt 0:00:11]} 3. Nc3 {[%emt 0:01:03]} Nf6 {[%emt 0:01:48]} 4. Nf3 {[%emt 0:01:28]} e6 {[%emt 0:01:36]} 5. e3 {[%emt 0:02:01]} Bd6 {[%emt 0:00:42]} 6. Qc2 {[%emt 0:02:51]} O-O {[%emt 0:01:04]} 7. b3 {[%emt 0:02:35]} Nbd7 {[%emt 0:01:22]} 8. Bb2 {[%emt 0:02:02]} Qe7 {[%emt 0:12:02]} 9. Be2 {[%emt 0:08:07]} b6 {[%emt 0:01:44]} 10. O-O {[%emt 0:02:02]} Bb7 {[%emt 0:01:05]} 11. Rac1 {[%emt 0:03:19]} Rac8 {[%emt 0:00:38]} 12. Rfd1 {[%emt 0:01:12]} Rfd8 {[%emt 0:01:24]} 13. Qb1 {[%emt 0:03:07]} dxc4 {[%emt 0:10:32]} 14. bxc4 {[%emt 0:00:58]} c5 {[%emt 0:00:18]} 15. d5 {[%emt 0:04:08]} Ne5 {[%emt 0:06:44]} 16. e4 {[%emt 0:07:24]} Ba6 {[%emt 0:07:11]} 17. Nd2 {[%emt 0:04:09]} Ng6 {[%emt 0:04:38]} 18. g3 {[%emt 0:04:58]} Be5 {[%emt 0:09:06]} 19. Bf1 {[%emt 0:06:30]} Bd4 {[%emt 0:00:30]} 20. Nf3 {[%emt 0:00:30]} Ne5 {[%emt 0:02:52]} 21. Nxe5 {[%emt 0:04:57]} Bxe5 {[%emt 0:06:47]} 22. Qc2 {[%emt 0:04:05]} Bd4 {[%emt 0:00:30]} 23. Rd2 {[%emt 0:04:19]} Ng4 {[%emt 0:06:57]} 24. Nd1 {[%emt 0:02:06]} exd5 {[%emt 0:08:03]} 25. exd5 {[%emt 0:00:37]} Ne5 {[%emt 0:00:59]} 26. Qb3 {[%emt 0:02:27]} Bxb2 {[%emt 0:07:04]} 27. Rxb2 {[%emt 0:00:28]} Bb7 {[%emt 0:00:30]} 28. Re2 {[%emt 0:06:32]} Qf6 {[%emt 0:02:29]} 29. f4 {[%emt 0:00:48]} Ng6 {[%emt 0:00:11]} 30. Nf2 {[%emt 0:01:47]} Re8 {[%emt 0:02:14]} 31. Rce1 {[%emt 0:03:36]} Rxe2 {[%emt 0:00:43]} 32. Rxe2 {[%emt 0:00:22]} Rd8 {[%emt 0:01:04]} 33. h4 {[%emt 0:04:30]} Nf8 {[%emt 0:02:43]} 34. Bh3 {[%emt 0:02:12]} Bc8 {[%emt 0:00:40]} 35. Bxc8 {[%emt 0:00:50]} Rxc8 {[%emt 0:00:04]} 36. Qa4 {[%emt 0:00:28]} Qc3 {[%emt 0:01:08]} 37. Kg2 {[%emt 0:00:15]} a5 {[%emt 0:00:32]} 38. Qb5 {[%emt 0:02:53]} Qb4 {[%emt 0:00:33]} 39. Qa6 {[%emt 0:00:07]} Rd8 {[%emt 0:00:23]} 40. Re7 {[%emt 0:00:32]} Qb2 {[%emt 0:00:42]} 41. Qa7 {[%emt 0:09:40]} Qf6 {[%emt 0:11:01]} 42. a4 {[%emt 0:06:28]} h6 {[%emt 0:02:00]} 43. h5 {[%emt 0:01:50]} Rc8 {[%emt 0:06:57]} 44. Qb7 {[%emt 0:02:10]} Rd8 {[%emt 0:01:39]} 45. Re5 {[%emt 0:04:18]} Rd7 {[%emt 0:01:39]} 46. Qc8 {[%emt 0:01:20]} Rd8 {[%emt 0:00:31]} 47. Qg4 {[%emt 0:00:53]} Rb8 {[%emt 0:02:21]} 48. Ne4 {[%emt 0:01:53]} Qd8 {[%emt 0:00:13]} 49. Re8 {[%emt 0:00:17]} Qc7 {[%emt 0:03:09]} 50. d6 {[%emt 0:00:27]} Qa7 {[%emt 0:05:04]} 51. Re7 {[%emt 0:02:14]} Rb7 {[%emt 0:00:43]} 52. Nf6+ {[%emt 0:00:48]} Kh8 {[%emt 0:00:06]} 53. Qc8 {[%emt 0:02:03]} Rb8 {[%emt 0:00:13]} 54. Qxf8+ {[%emt 0:01:07]} Rxf8 {[%emt 0:00:05]} 55. Rxa7 {[%emt 0:00:09]} gxf6 {[%emt 0:00:06]} 56. Rb7 {[%emt 0:00:13]} Rd8 {[%emt 0:00:05]} 57. Rxb6 {[%emt 0:00:04]} f5 {[%emt 0:00:13]} 58. Rc6 {[%emt 0:00:34]} Kg7 {[%emt 0:00:14]} 59. Rxc5 {[%emt 0:00:14]} Rxd6 {[%emt 0:00:05]} 60. Rxa5 {[%emt 0:00:27]} Rd2+ {[%emt 0:00:07]} 61. Kh3 {[%emt 0:00:13]} Rc2 {[%emt 0:00:11]} 62. Rc5 {[%emt 0:00:13]} Ra2 {[%emt 0:00:16]} 63. a5 {[%emt 0:00:06]} Ra4 {[%emt 0:00:04]} 64. g4 {[%emt 0:00:19]} fxg4+ {[%emt 0:00:30]} 65. Kxg4 {[%emt 0:00:08]} Kg8 {[%emt 0:00:44]} 66. Kf5 {[%emt 0:00:11]} Kg7 {[%emt 0:00:09]} 67. Ke5 {[%emt 0:00:04]} Ra1 {[%emt 0:00:42]} 68. Kd6 {[%emt 0:00:10]} Kf6 {[%emt 0:00:15]} 69. Kc7 {[%emt 0:00:12]} Ke6 {[%emt 0:00:19]} 70. Kb6 {[%emt 0:00:31]} Kd6 {[%emt 0:00:47]} 71. Rd5+ {[%emt 0:00:06]} Ke6 {[%emt 0:00:07]} 72. a6 {[%emt 0:00:04]} 1-0

[Event "Tirnavia Reti Memorial-GM 2022"]
[Site "Trnava"]
[Date "2022.08.10"]
[Round "1.5"]
[White "Czebe, Attila"]
[Black "Farkas, Gabor"]
[Result "0-1"]
[ECO "B47"]
[WhiteElo "2385"]
[BlackElo "2335"]
[Annotator "RC"]
[PlyCount "80"]
[EventDate "2022.08.10"]
[EventType "tourn"]
[EventCountry "SVK"]
[SourceTitle "playchess.com"]
[Source "ChessBase"]
[SourceQuality "1"]
[TimeControl "40/5400+30:1800+30"]

1. e4 {[%emt 0:02:03]} c5 {[%emt 0:00:04]} 2. Nf3 {[%emt 0:00:07]} e6 {[%emt 0:00:06]} 3. d4 {[%emt 0:01:13]} cxd4 {[%emt 0:00:06]} 4. Nxd4 {[%emt 0:00:04]} Nc6 {[%emt 0:00:07]} 5. Nc3 {[%emt 0:00:20]} Qc7 {[%emt 0:00:05]} 6. f4 {[%emt 0:00:28]} Nxd4 {[%emt 0:00:26]} 7. Qxd4 {[%emt 0:00:05]} b6 {[%emt 0:00:53]} 8. Be3 {[%emt 0:03:59]} Nf6 {[%emt 0:03:11]} 9. O-O-O {[%emt 0:03:09]} Bb7 {[%emt 0:07:35]} 10. Kb1 {[%emt 0:04:18]} Rc8 {[%emt 0:03:49]} 11. Qa4 {[%emt 0:39:20]} Bc6 {[%emt 0:27:51]} 12. Bb5 {[%emt 0:00:49]} Be7 {[%emt 0:07:31]} 13. Bxc6 {[%emt 0:05:41]} Qxc6 {[%emt 0:06:29]} 14. Qxa7 {[%emt 0:11:05]} Bc5 {[%emt 0:19:16]} 15. Bxc5 {[%emt 0:03:18]} bxc5 {[%emt 0:00:03]} 16. Qa4 {[%emt 0:07:00]} Qxa4 {[%emt 0:00:14]} 17. Nxa4 {[%emt 0:00:04]} Nxe4 {[%emt 0:00:08]} 18. Rhe1 {[%emt 0:00:04]} f5 {[%emt 0:00:47]} 19. c4 {[%emt 0:00:03]} Ra8 {[%emt 0:01:05]} 20. Nb6 {[%emt 0:00:17]} Ra7 {[%emt 0:05:01]} 21. g4 {[%emt 0:04:33]} g6 {[%emt 0:01:36]} 22. gxf5 {[%emt 0:00:03]} gxf5 {[%emt 0:00:11]} 23. Rg1 {[%emt 0:00:02]} d6 {[%emt 0:05:20]} 24. Nc8 {[%emt 0:03:10]} Rd7 {[%emt 0:01:14]} 25. Nb6 {[%emt 0:01:19]} Rb7 {[%emt 0:01:33]} 26. Na4 {[%emt 0:00:03]} Rb4 {[%emt 0:00:28]} 27. b3 {[%emt 0:00:02]} Rxa4 {[%emt 0:00:18]} 28. bxa4 {[%emt 0:00:03]} Nc3+ {[%emt 0:00:06]} 29. Kc2 {[%emt 0:00:01]} Nxd1 {[%emt 0:00:07]} 30. Rxd1 {[%emt 0:00:05]} Kd7 {[%emt 0:02:01]} 31. Rg1 {[%emt 0:00:38]} e5 {[%emt 0:00:40]} 32. Rg7+ {[%emt 0:00:20]} Ke6 {[%emt 0:00:10]} 33. a5 {[%emt 0:00:09]} Ra8 {[%emt 0:00:27]} 34. Rxh7 {[%emt 0:00:33]} exf4 {[%emt 0:00:15]} 35. Kb3 {[%emt 0:08:23]} Rxa5 {[%emt 0:00:11]} 36. Rh8 {[%emt 0:00:02]} Ra7 {[%emt 0:00:49]} 37. Re8+ {[%emt 0:00:09]} Re7 {[%emt 0:03:14]} 38. Rxe7+ {[%emt 0:01:31]} Kxe7 {[%emt 0:00:02]} 39. Kc3 {[%emt 0:00:06]} f3 {[%emt 0:00:29]} 40. Kd2 {[%emt 0:00:23]} d5 {[%emt 0:00:05]} 0-1

[Event "Tirnavia Reti Memorial-GM 2022"]
[Site "Trnava"]
[Date "2022.08.11"]
[Round "2.1"]
[White "Malinovsky, Karel"]
[Black "Farkas, Gabor"]
[Result "1-0"]
[ECO "C81"]
[WhiteElo "2463"]
[BlackElo "2335"]
[Annotator "RC"]
[PlyCount "99"]
[EventDate "2022.08.10"]
[EventType "tourn"]
[EventCountry "SVK"]
[SourceTitle "playchess.com"]
[Source "ChessBase"]
[SourceQuality "1"]
[TimeControl "40/5400+30:1800+30"]

1. e4 {[%emt 0:00:06]} e5 {[%emt 0:00:06]} 2. Nf3 {[%emt 0:00:06]} Nc6 {[%emt 0:00:05]} 3. Bb5 {[%emt 0:00:08]} a6 {[%emt 0:00:09]} 4. Ba4 {[%emt 0:00:06]} Nf6 {[%emt 0:00:19]} 5. O-O {[%emt 0:00:07]} Nxe4 {[%emt 0:00:20]} 6. d4 {[%emt 0:00:25]} b5 {[%emt 0:00:19]} 7. Bb3 {[%emt 0:00:07]} d5 {[%emt 0:00:16]} 8. dxe5 {[%emt 0:00:14]} Be6 {[%emt 0:00:13]} 9. Qe2 {[%emt 0:01:49]} Be7 {[%emt 0:04:28]} 10. Rd1 {[%emt 0:00:54]} O-O {[%emt 0:02:10]} 11. c4 {[%emt 0:00:50]} bxc4 {[%emt 0:00:25]} 12. Bxc4 {[%emt 0:00:09]} Bc5 {[%emt 0:00:47]} 13. Be3 {[%emt 0:00:37]} Bxe3 {[%emt 0:00:09]} 14. Qxe3 {[%emt 0:00:27]} Qb8 {[%emt 0:01:45]} 15. Bb3 {[%emt 0:00:43]} Na5 {[%emt 0:00:32]} 16. Nbd2 {[%emt 0:01:04]} Qa7 {[%emt 0:00:45]} 17. Nxe4 {[%emt 0:01:11]} Qxe3 {[%emt 0:00:11]} 18. fxe3 {[%emt 0:00:10]} Nxb3 {[%emt 0:00:06]} 19. axb3 {[%emt 0:00:09]} dxe4 {[%emt 0:00:07]} 20. Nd4 {[%emt 0:00:20]} c5 {[%emt 0:00:06]} 21. Nc6 {[%emt 0:01:37]} Bxb3 {[%emt 0:00:21]} 22. Rd6 {[%emt 0:00:13]} h6 {[%emt 0:00:06]} 23. Ra5 {[%emt 0:02:43]} c4 {[%emt 0:02:34]} 24. Kf2 {[%emt 0:02:10]} Kh7 {[%emt 0:25:48]} 25. Kg3 {[%emt 0:00:30]} Bc2 {[%emt 0:00:30]} 26. Kf4 {[%emt 0:10:35]} Bd3 {[%emt 0:02:02]} 27. h4 {[%emt 0:21:48]} Rac8 {[%emt 0:03:51]} 28. g4 {[%emt 0:04:29]} Rc7 {[%emt 0:07:43]} 29. g5 {[%emt 0:03:52]} Rb7 {[%emt 0:05:00]} 30. Ra2 {[%emt 0:08:13]} h5 {[%emt 0:05:52]} 31. Rd8 {[%emt 0:21:18]} Rxd8 {[%emt 0:03:48]} 32. Nxd8 {[%emt 0:00:06]} Rd7 {[%emt 0:01:31]} 33. g6+ {[%emt 0:02:11]} Kxg6 {[%emt 0:10:28]} 34. Rxa6+ {[%emt 0:00:26]} Kh7 {[%emt 0:07:09]} 35. Rd6 {[%emt 0:00:25]} Ra7 {[%emt 0:03:33]} 36. e6 {[%emt 0:00:42]} fxe6 {[%emt 0:00:46]} 37. Nxe6 {[%emt 0:00:14]} g6 {[%emt 0:01:56]} 38. Ke5 {[%emt 0:05:22]} Ra5+ {[%emt 0:03:41]} 39. Rd5 {[%emt 0:05:43]} Rxd5+ {[%emt 0:02:24]} 40. Kxd5 {[%emt 0:03:48]} Kg8 {[%emt 0:00:55]} 41. Ng5 {[%emt 0:30:30]} Kf8 {[%emt 0:30:30]} 42. Ke6 {[%emt 0:00:30]} Kg7 {[%emt 0:00:25]} 43. Ke7 {[%emt 0:02:48]} Bc2 {[%emt 0:01:07]} 44. Ne6+ {[%emt 0:00:34]} Kh6 {[%emt 0:00:07]} 45. Kf6 {[%emt 0:00:25]} Ba4 {[%emt 0:00:07]} 46. Ng5 {[%emt 0:00:00]} Bc6 {[%emt 0:00:00]} 47. Nf7+ {[%emt 0:00:00]} Kh7 {[%emt 0:00:00]} 48. Ne5 {[%emt 0:00:00]} Be8 {[%emt 0:00:00]} 49. Nxc4 {[%emt 0:00:00]} Kh6 {[%emt 0:00:00]} 50. Nd6 {[%emt 0:00:00]} 1-0

[Event "Tirnavia Reti Memorial-GM 2022"]
[Site "Trnava"]
[Date "2022.08.11"]
[Round "2.2"]
[White "Pechac, Jergus"]
[Black "Czebe, Attila"]
[Result "1-0"]
[ECO "A04"]
[WhiteElo "2594"]
[BlackElo "2385"]
[Annotator "RC"]
[PlyCount "49"]
[EventDate "2022.08.10"]
[EventType "tourn"]
[EventCountry "SVK"]
[SourceTitle "playchess.com"]
[Source "ChessBase"]
[SourceQuality "1"]
[TimeControl "40/5400+30:1800+30"]

1. Nf3 {[%emt 0:00:12]} e6 {[%emt 0:01:01]} 2. g3 {[%emt 0:00:30]} b5 {[%emt 0:00:36]} 3. e4 {[%emt 0:00:14]} Bb7 {[%emt 0:01:12]} 4. Qe2 {[%emt 0:00:17]} c5 {[%emt 0:00:58]} 5. Bg2 {[%emt 0:01:15]} Be7 {[%emt 0:05:15]} 6. d4 {[%emt 0:01:23]} Nf6 {[%emt 0:02:02]} 7. Nbd2 {[%emt 0:03:06]} Nc6 {[%emt 0:03:29]} 8. e5 {[%emt 0:03:30]} Nd5 {[%emt 0:00:17]} 9. dxc5 {[%emt 0:00:14]} Bxc5 {[%emt 0:00:17]} 10. Ne4 {[%emt 0:02:04]} Qb6 {[%emt 0:00:21]} 11. O-O {[%emt 0:03:25]} O-O {[%emt 0:04:46]} 12. c3 {[%emt 0:02:25]} a5 {[%emt 0:02:20]} 13. Nfg5 {[%emt 0:03:56]} f5 {[%emt 0:08:26]} 14. Qh5 {[%emt 0:07:53]} h6 {[%emt 0:02:13]} 15. Qg6 {[%emt 0:00:41]} hxg5 {[%emt 0:00:09]} 16. Nxg5 {[%emt 0:00:05]} Rfe8 {[%emt 0:01:03]} 17. Bxd5 {[%emt 0:02:19]} exd5 {[%emt 0:01:17]} 18. Qf7+ {[%emt 0:00:09]} Kh8 {[%emt 0:00:04]} 19. Qxf5 {[%emt 0:00:11]} Kg8 {[%emt 0:00:04]} 20. Bf4 {[%emt 0:00:35]} Ne7 {[%emt 0:00:55]} 21. Qf7+ {[%emt 0:00:32]} Kh8 {[%emt 0:00:30]} 22. e6 {[%emt 0:00:14]} dxe6 {[%emt 0:04:07]} 23. Rae1 {[%emt 0:10:11]} Nf5 {[%emt 0:02:23]} 24. Rxe6 {[%emt 0:00:06]} Rxe6 {[%emt 0:00:17]} 25. Nxe6 {[%emt 0:00:06]} 1-0

[Event "Tirnavia Reti Memorial-GM 2022"]
[Site "Trnava"]
[Date "2022.08.11"]
[Round "2.4"]
[White "Finek, Vaclav"]
[Black "Jablonicky, Martin"]
[Result "0-1"]
[ECO "D73"]
[WhiteElo "2393"]
[BlackElo "2343"]
[Annotator "RC"]
[PlyCount "112"]
[EventDate "2022.08.10"]
[EventType "tourn"]
[EventCountry "SVK"]
[SourceTitle "playchess.com"]
[Source "ChessBase"]
[SourceQuality "1"]
[TimeControl "40/5400+30:1800+30"]

1. d4 {[%emt 0:00:07]} Nf6 {[%emt 0:00:06]} 2. Nf3 {[%emt 0:00:07]} g6 {[%emt 0:00:17]} 3. g3 {[%emt 0:00:11]} Bg7 {[%emt 0:00:36]} 4. Bg2 {[%emt 0:00:05]} c5 {[%emt 0:00:15]} 5. O-O {[%emt 0:01:18]} O-O {[%emt 0:01:17]} 6. c4 {[%emt 0:01:10]} cxd4 {[%emt 0:00:20]} 7. Nxd4 {[%emt 0:00:15]} d5 {[%emt 0:00:13]} 8. cxd5 {[%emt 0:15:15]} Nxd5 {[%emt 0:00:08]} 9. Nb3 {[%emt 0:03:34]} Nb4 {[%emt 0:08:01]} 10. Nc3 {[%emt 0:03:25]} N8c6 {[%emt 0:01:59]} 11. Bf4 {[%emt 0:11:45]} Bf5 {[%emt 0:08:44]} 12. Rc1 {[%emt 0:15:31]} Bxc3 {[%emt 0:06:34]} 13. Rxc3 {[%emt 0:01:40]} Nxa2 {[%emt 0:00:08]} 14. Re3 {[%emt 0:04:54]} Qxd1 {[%emt 0:03:11]} 15. Rxd1 {[%emt 0:00:07]} Nab4 {[%emt 0:01:10]} 16. h3 {[%emt 0:07:14]} Rfd8 {[%emt 0:01:29]} 17. Rc1 {[%emt 0:04:25]} Nd5 {[%emt 0:12:04]} 18. Bxd5 {[%emt 0:00:52]} Rxd5 {[%emt 0:00:01]} 19. g4 {[%emt 0:00:19]} Bc8 {[%emt 0:05:03]} 20. Kh2 {[%emt 0:04:08]} f6 {[%emt 0:13:47]} 21. Nc5 {[%emt 0:05:59]} Kf7 {[%emt 0:19:43]} 22. Bg3 {[%emt 0:09:02]} Nd8 {[%emt 0:02:57]} 23. Rec3 {[%emt 0:02:34]} Ne6 {[%emt 0:00:49]} 24. Nxe6 {[%emt 0:00:39]} Bxe6 {[%emt 0:00:03]} 25. Rc7 {[%emt 0:00:10]} b6 {[%emt 0:08:25]} 26. Rb7 {[%emt 0:01:57]} Rd7 {[%emt 0:01:16]} 27. Rcc7 {[%emt 0:00:41]} Rxc7 {[%emt 0:00:13]} 28. Rxc7 {[%emt 0:00:19]} Ke8 {[%emt 0:00:22]} 29. e4 {[%emt 0:00:59]} b5 {[%emt 0:01:17]} 30. e5 {[%emt 0:01:46]} fxe5 {[%emt 0:00:30]} 31. Bxe5 {[%emt 0:00:28]} a5 {[%emt 0:00:18]} 32. Bd4 {[%emt 0:01:59]} Bd7 {[%emt 0:02:47]} 33. Ra7 {[%emt 0:01:38]} Rxa7 {[%emt 0:00:42]} 34. Bxa7 {[%emt 0:00:05]} Kf7 {[%emt 0:00:43]} 35. Kg3 {[%emt 0:01:38]} e5 {[%emt 0:00:18]} 36. f4 {[%emt 0:01:01]} Ke6 {[%emt 0:00:18]} 37. fxe5 {[%emt 0:01:00]} Kxe5 {[%emt 0:00:09]} 38. Kf3 {[%emt 0:00:18]} Kd5 {[%emt 0:00:47]} 39. Bb6 {[%emt 0:00:45]} a4 {[%emt 0:00:35]} 40. Ke3 {[%emt 0:00:37]} Kc4 {[%emt 0:00:25]} 41. Bd4 {[%emt 0:04:54]} b4 {[%emt 0:01:34]} 42. Bg7 {[%emt 0:07:18]} Kb3 {[%emt 0:01:33]} 43. Kd2 {[%emt 0:01:16]} Ka2 {[%emt 0:04:33]} 44. Kc1 {[%emt 0:00:52]} g5 {[%emt 0:07:18]} 45. Bf6 {[%emt 0:10:53]} a3 {[%emt 0:00:06]} 46. b3 {[%emt 0:03:33]} Kxb3 {[%emt 0:05:07]} 47. Kb1 {[%emt 0:00:07]} Bc6 {[%emt 0:00:37]} 48. Bxg5 {[%emt 0:00:41]} Be4+ {[%emt 0:00:11]} 49. Ka1 {[%emt 0:00:14]} Bg2 {[%emt 0:00:05]} 50. h4 {[%emt 0:01:23]} Bf3 {[%emt 0:00:04]} 51. h5 {[%emt 0:00:30]} Bxg4 {[%emt 0:00:09]} 52. h6 {[%emt 0:00:03]} Ka4 {[%emt 0:00:12]} 53. Be7 {[%emt 0:01:22]} b3 {[%emt 0:00:09]} 54. Bf6 {[%emt 0:00:04]} b2+ {[%emt 0:00:08]} 55. Bxb2 {[%emt 0:00:05]} axb2+ {[%emt 0:00:04]} 56. Kxb2 {[%emt 0:00:08]} Kb4 {[%emt 0:00:04]} 0-1